[Event "*** Titled Tuesday Blitz"]
[Site "Chess.com"]
[Date "2020.05.19"]
[Round "1"]
[White "poummba"]
[Black "GM_dmitrij"]
[Result "0-1"]
[WhiteElo "2452"]
[BlackElo "2913"]
[TimeControl "180+1"]
[EndTime "12:08:34 PDT"]
[Termination "GM_dmitrij won on time"]

1. e4 {[%clk 0:02:59.8]} 1... e5 {[%clk 0:02:59.4]} 2. Bc4 {[%clk 0:02:58.8]}
2... Nf6 {[%clk 0:02:58.3]} 3. d3 {[%clk 0:02:58.3]} 3... c6 {[%clk 0:02:58.6]}
4. Nf3 {[%clk 0:02:57.6]} 4... d5 {[%clk 0:02:58.6]} 5. Bb3 {[%clk 0:02:56.6]}
5... a5 {[%clk 0:02:58.9]} 6. a3 {[%clk 0:02:54.5]} 6... a4 {[%clk 0:02:58.7]}
7. Ba2 {[%clk 0:02:54.5]} 7... Bd6 {[%clk 0:02:59.2]} 8. exd5 {[%clk 0:02:51.9]}
8... cxd5 {[%clk 0:03:00.1]} 9. Nc3 {[%clk 0:02:52.2]} 9... Ra5 {[%clk
0:02:52.8]} 10. Bg5 {[%clk 0:02:48.5]} 10... Be6 {[%clk 0:02:51.2]} 11. O-O
{[%clk 0:02:48.2]} 11... O-O {[%clk 0:02:49.8]} 12. Re1 {[%clk 0:02:48.6]} 12...
Nc6 {[%clk 0:02:43.1]} 13. Bh4 {[%clk 0:02:48.9]} 13... h6 {[%clk 0:02:42.3]}
14. h3 {[%clk 0:02:39.1]} 14... Re8 {[%clk 0:02:40.7]} 15. Qd2 {[%clk
0:02:33.7]} 15... d4 {[%clk 0:01:32.9]} 16. Ne4 {[%clk 0:02:23.3]} 16... Nxe4
{[%clk 0:01:25.9]} 17. Rxe4 {[%clk 0:02:13.5]} 17... Qd7 {[%clk 0:01:25.3]} 18.
Bxe6 {[%clk 0:02:09.8]} 18... Rxe6 {[%clk 0:01:26.2]} 19. Rae1 {[%clk
0:01:49.4]} 19... Rb5 {[%clk 0:01:25.1]} 20. c3 {[%clk 0:01:29.3]} 20... dxc3
{[%clk 0:01:16.2]} 21. Qxc3 {[%clk 0:01:28]} 21... Rb3 {[%clk 0:01:05.6]} 22.
Qc2 {[%clk 0:01:10.5]} 22... Nd4 {[%clk 0:00:29.1]} 23. Nxd4 {[%clk 0:01:05.4]}
23... exd4 {[%clk 0:00:30]} 24. Rxe6 {[%clk 0:01:01.9]} 24... fxe6 {[%clk
0:00:30.9]} 25. Qc4 {[%clk 0:01:00.9]} 25... b5 {[%clk 0:00:29.9]} 26. Qxe6+
{[%clk 0:00:58.8]} 26... Qxe6 {[%clk 0:00:30.8]} 27. Rxe6 {[%clk 0:00:59]} 27...
Bf4 {[%clk 0:00:31.7]} 28. Rb6 {[%clk 0:00:19.4]} 28... Bc1 {[%clk 0:00:20.2]}
29. Be7 {[%clk 0:00:12.9]} 29... Bxb2 {[%clk 0:00:19.9]} 30. Bb4 {[%clk
0:00:10.4]} 30... Bxa3 {[%clk 0:00:18.4]} 31. Bxa3 {[%clk 0:00:10.1]} 31... Rxa3
{[%clk 0:00:19.3]} 32. Rxb5 {[%clk 0:00:10.6]} 32... Rxd3 {[%clk 0:00:19.9]} 33.
Ra5 {[%clk 0:00:07.7]} 33... Rd1+ {[%clk 0:00:12.2]} 34. Kh2 {[%clk 0:00:07.6]}
34... Ra1 {[%clk 0:00:13.1]} 35. Rd5 {[%clk 0:00:06.3]} 35... Rd1 {[%clk
0:00:10.9]} 36. Ra5 {[%clk 0:00:06.2]} 36... Ra1 {[%clk 0:00:10.3]} 37. Rd5
{[%clk 0:00:06.1]} 37... a3 {[%clk 0:00:10.3]} 38. Rxd4 {[%clk 0:00:06]} 38...
Kf7 {[%clk 0:00:11.2]} 39. Ra4 {[%clk 0:00:05.8]} 39... Ke6 {[%clk 0:00:11.8]}
40. Ra7 {[%clk 0:00:04.6]} 40... g5 {[%clk 0:00:09.4]} 41. Ra6+ {[%clk
0:00:04.3]} 41... Kd5 {[%clk 0:00:09.7]} 42. Rxh6 {[%clk 0:00:04.3]} 42... Kc4
{[%clk 0:00:10.2]} 43. Ra6 {[%clk 0:00:04]} 43... Kb4 {[%clk 0:00:10.4]} 44. Ra8
{[%clk 0:00:02.3]} 44... Rc1 {[%clk 0:00:09.1]} 45. Rb8+ {[%clk 0:00:02.8]}
45... Kc3 {[%clk 0:00:08.6]} 46. Rc8+ {[%clk 0:00:02.2]} 46... Kb2 {[%clk
0:00:09.5]} 47. Rb8+ {[%clk 0:00:02.6]} 47... Ka1 {[%clk 0:00:09.1]} 48. Kg3
{[%clk 0:00:02.3]} 48... Rc4 {[%clk 0:00:07.7]} 49. f3 {[%clk 0:00:01.9]} 49...
Ka2 {[%clk 0:00:07.1]} 50. Kf2 {[%clk 0:00:01.5]} 50... Rc2+ {[%clk 0:00:06.6]}
51. Kg3 {[%clk 0:00:01.9]} 51... Rb2 {[%clk 0:00:07.5]} 52. Ra8 {[%clk
0:00:01.6]} 52... Kb3 {[%clk 0:00:08]} 53. Rb8+ {[%clk 0:00:01.7]} 53... Kc2
{[%clk 0:00:08.4]} 54. Rc8+ {[%clk 0:00:02.1]} 54... Kb1 {[%clk 0:00:08.8]} 55.
Ra8 {[%clk 0:00:02.2]} 55... a2 {[%clk 0:00:09.7]} 56. h4 {[%clk 0:00:02.6]}
56... gxh4+ {[%clk 0:00:06.8]} 57. Kxh4 {[%clk 0:00:03.5]} 57... Rxg2 {[%clk
0:00:07]} 58. Kh3 {[%clk 0:00:02.8]} 58... Rc2 {[%clk 0:00:05.6]} 59. f4 {[%clk
0:00:03.1]} 59... Kb2 {[%clk 0:00:06]} 60. Rxa2+ {[%clk 0:00:03.1]} 60... Kxa2
{[%clk 0:00:05.9]} 61. Kg4 {[%clk 0:00:04]} 61... Kb3 {[%clk 0:00:06.4]} 62. f5
{[%clk 0:00:04.9]} 62... Kc4 {[%clk 0:00:07]} 63. f6 {[%clk 0:00:05.8]} 63...
Kd5 {[%clk 0:00:07.5]} 64. f7 {[%clk 0:00:05.7]} 64... Rf2 {[%clk 0:00:07.5]}
65. Kg5 {[%clk 0:00:05.9]} 65... Rxf7 {[%clk 0:00:08]} 0-1

[Event "*** Titled Tuesday Blitz"]
[Site "Chess.com"]
[Date "2020.05.19"]
[Round "1"]
[White "Fandorine"]
[Black "OhanyanEminChess"]
[Result "1-0"]
[WhiteElo "2881"]
[BlackElo "2445"]
[TimeControl "180+1"]
[EndTime "12:08:38 PDT"]
[Termination "Fandorine won on time"]

1. e4 {[%clk 0:03:00.7]} 1... e5 {[%clk 0:02:59.4]} 2. Nf3 {[%clk 0:03:00.1]}
2... Nc6 {[%clk 0:02:59.4]} 3. Bc4 {[%clk 0:03:00.4]} 3... Nf6 {[%clk
0:02:58.3]} 4. d3 {[%clk 0:02:56.8]} 4... d5 {[%clk 0:02:55.7]} 5. exd5 {[%clk
0:02:56.3]} 5... Nxd5 {[%clk 0:02:56.6]} 6. O-O {[%clk 0:02:55]} 6... Be6 {[%clk
0:02:55.1]} 7. Ng5 {[%clk 0:02:46.6]} 7... Bc5 {[%clk 0:02:52.6]} 8. Nxe6 {[%clk
0:02:41.4]} 8... fxe6 {[%clk 0:02:53.5]} 9. Nc3 {[%clk 0:02:41.7]} 9... O-O
{[%clk 0:02:43.9]} 10. Ne4 {[%clk 0:02:39.9]} 10... Bb6 {[%clk 0:02:38.2]} 11.
Qg4 {[%clk 0:02:31.3]} 11... Qd7 {[%clk 0:02:33.5]} 12. c3 {[%clk 0:02:16.8]}
12... Rae8 {[%clk 0:02:30.2]} 13. Bd2 {[%clk 0:02:11.2]} 13... Nce7 {[%clk
0:02:16.8]} 14. Rad1 {[%clk 0:02:05.5]} 14... Ng6 {[%clk 0:02:10]} 15. g3 {[%clk
0:01:58.4]} 15... c6 {[%clk 0:02:03.4]} 16. h4 {[%clk 0:01:53]} 16... Kh8 {[%clk
0:02:02]} 17. Qh5 {[%clk 0:01:36.4]} 17... Qf7 {[%clk 0:01:52.4]} 18. Nd6 {[%clk
0:01:06]} 18... Qd7 {[%clk 0:01:26.2]} 19. Nxe8 {[%clk 0:01:03.4]} 19... Qxe8
{[%clk 0:01:27.1]} 20. Rde1 {[%clk 0:00:48.4]} 20... Qf7 {[%clk 0:01:26.4]} 21.
Be3 {[%clk 0:00:43.7]} 21... Bc7 {[%clk 0:01:21.4]} 22. Qg4 {[%clk 0:00:30.8]}
22... Nge7 {[%clk 0:01:07.8]} 23. Bc5 {[%clk 0:00:28.7]} 23... b6 {[%clk
0:01:00.9]} 24. Bxe7 {[%clk 0:00:23.4]} 24... Qxe7 {[%clk 0:01:01.8]} 25. Bxd5
{[%clk 0:00:22.1]} 25... exd5 {[%clk 0:00:57.3]} 26. Kg2 {[%clk 0:00:22.3]}
26... Qf7 {[%clk 0:00:55.4]} 27. d4 {[%clk 0:00:19.9]} 27... exd4 {[%clk
0:00:47.5]} 28. cxd4 {[%clk 0:00:18.7]} 28... Bd8 {[%clk 0:00:47]} 29. Re6
{[%clk 0:00:11.5]} 29... c5 {[%clk 0:00:43.9]} 30. dxc5 {[%clk 0:00:10.3]} 30...
bxc5 {[%clk 0:00:44.8]} 31. f4 {[%clk 0:00:08.9]} 31... Bf6 {[%clk 0:00:44.4]}
32. b3 {[%clk 0:00:08.6]} 32... Qb7 {[%clk 0:00:41.2]} 33. Qf3 {[%clk
0:00:07.7]} 33... Rd8 {[%clk 0:00:40.4]} 34. Rfe1 {[%clk 0:00:07.9]} 34... Qd7
{[%clk 0:00:32.5]} 35. Qe3 {[%clk 0:00:08.2]} 35... h5 {[%clk 0:00:12.6]} 36.
Re8+ {[%clk 0:00:07.4]} 36... Kh7 {[%clk 0:00:13.2]} 37. Rxd8 {[%clk 0:00:06.3]}
37... Qxd8 {[%clk 0:00:11.7]} 38. Qxc5 {[%clk 0:00:06.4]} 38... Qd7 {[%clk
0:00:07.5]} 39. Qc2+ {[%clk 0:00:04.7]} 39... Kh6 {[%clk 0:00:07.6]} 40. Qd3
{[%clk 0:00:04.5]} 40... d4 {[%clk 0:00:06.6]} 41. Qf3 {[%clk 0:00:03.4]} 41...
Qc7 {[%clk 0:00:05.8]} 42. Re2 {[%clk 0:00:03.3]} 42... Qc1 {[%clk 0:00:04.8]}
43. Qd3 {[%clk 0:00:03.5]} 43... Qa1 {[%clk 0:00:04.3]} 44. Re8 {[%clk
0:00:03.3]} 44... g6 {[%clk 0:00:04.1]} 45. Re2 {[%clk 0:00:02.5]} 45... Qc1
{[%clk 0:00:04]} 46. Rd2 {[%clk 0:00:02.7]} 46... Qc6+ {[%clk 0:00:04.4]} 47.
Qf3 {[%clk 0:00:02.5]} 47... Qd7 {[%clk 0:00:05.2]} 48. Re2 {[%clk 0:00:02.9]}
48... Qb5 {[%clk 0:00:03.4]} 49. Rd2 {[%clk 0:00:03.3]} 49... Qc5 {[%clk
0:00:02.9]} 50. Qd3 {[%clk 0:00:03.8]} 50... Qc7 {[%clk 0:00:03.2]} 51. Kh2
{[%clk 0:00:04.7]} 51... Qc6 {[%clk 0:00:03.3]} 52. Rc2 {[%clk 0:00:05.6]} 52...
Qd6 {[%clk 0:00:03.6]} 53. Rc4 {[%clk 0:00:05.9]} 53... Qb6 {[%clk 0:00:02.5]}
54. f5 {[%clk 0:00:05.8]} 54... g5 {[%clk 0:00:02.3]} 55. hxg5+ {[%clk
0:00:05.8]} 55... Kxg5 {[%clk 0:00:02.9]} 56. Qd2+ {[%clk 0:00:05.6]} 56... Kxf5
{[%clk 0:00:03.5]} 57. Qf2+ {[%clk 0:00:05.4]} 57... Kg6 {[%clk 0:00:03.4]} 58.
Qf3 {[%clk 0:00:05.3]} 58... Qe6 {[%clk 0:00:03.3]} 59. Rc6 {[%clk 0:00:05.3]}
59... Qe5 {[%clk 0:00:03]} 60. Qd3+ {[%clk 0:00:03.5]} 60... Kg5 {[%clk
0:00:02.9]} 61. Qd2+ {[%clk 0:00:03.9]} 61... Kg6 {[%clk 0:00:03.3]} 62. Qc2+
{[%clk 0:00:03.5]} 62... Kg5 {[%clk 0:00:03.6]} 63. Rc5 {[%clk 0:00:04.1]} 1-0

[Event "*** Titled Tuesday Blitz"]
[Site "Chess.com"]
[Date "2020.05.19"]
[Round "1"]
[White "ajian"]
[Black "MikeKorovin"]
[Result "0-1"]
[WhiteElo "2329"]
[BlackElo "2628"]
[TimeControl "180+1"]
[EndTime "12:08:42 PDT"]
[Termination "MikeKorovin won by resignation"]

1. d4 {[%clk 0:02:58.9]} 1... Nf6 {[%clk 0:02:59.6]} 2. c4 {[%clk 0:02:59]} 2...
e6 {[%clk 0:03:00.5]} 3. Nc3 {[%clk 0:02:59.1]} 3... Bb4 {[%clk 0:03:01]} 4. Qc2
{[%clk 0:02:59.3]} 4... O-O {[%clk 0:03:01.1]} 5. a3 {[%clk 0:02:59.5]} 5...
Bxc3+ {[%clk 0:03:01.3]} 6. Qxc3 {[%clk 0:03:00.4]} 6... d5 {[%clk 0:03:01.6]}
7. Bg5 {[%clk 0:02:59.9]} 7... h6 {[%clk 0:02:58.2]} 8. Bh4 {[%clk 0:02:59.4]}
8... b6 {[%clk 0:02:44.9]} 9. Nf3 {[%clk 0:02:47.1]} 9... dxc4 {[%clk
0:02:41.7]} 10. Qxc4 {[%clk 0:02:46.6]} 10... Ba6 {[%clk 0:02:41.6]} 11. Qa4
{[%clk 0:02:47]} 11... Qd7 {[%clk 0:02:30.4]} 12. Qc2 {[%clk 0:02:46.5]} 12...
Nc6 {[%clk 0:02:19.9]} 13. e3 {[%clk 0:02:30.4]} 13... Bxf1 {[%clk 0:02:19]} 14.
Rxf1 {[%clk 0:02:27.6]} 14... Rac8 {[%clk 0:02:09.8]} 15. Bxf6 {[%clk
0:02:23.1]} 15... gxf6 {[%clk 0:02:10.7]} 16. Ke2 {[%clk 0:02:23.7]} 16... Ne7
{[%clk 0:02:06.8]} 17. Rfd1 {[%clk 0:02:19.3]} 17... Qb5+ {[%clk 0:02:03.6]} 18.
Qd3 {[%clk 0:02:05.7]} 18... Qxb2+ {[%clk 0:01:50.6]} 19. Kf1 {[%clk 0:02:05.5]}
19... c5 {[%clk 0:01:50.1]} 20. Rdb1 {[%clk 0:01:18]} 20... c4 {[%clk
0:01:49.4]} 21. Rxb2 {[%clk 0:00:58.7]} 21... cxd3 {[%clk 0:01:48.7]} 22. Ne1
{[%clk 0:00:59.4]} 22... Rc3 {[%clk 0:01:40.9]} 23. Rd2 {[%clk 0:00:54.3]} 23...
Rfc8 {[%clk 0:01:40.8]} 24. Rxd3 {[%clk 0:00:49.5]} 24... Nd5 {[%clk 0:01:37.3]}
25. Ke2 {[%clk 0:00:40.8]} 25... Rxd3 {[%clk 0:01:23.7]} 26. Kxd3 {[%clk
0:00:33.3]} 26... Rc3+ {[%clk 0:01:23]} 27. Kd2 {[%clk 0:00:33.1]} 27... Rb3
{[%clk 0:01:14.3]} 28. Kc2 {[%clk 0:00:31.6]} 28... Rc3+ {[%clk 0:01:06.4]} 29.
Kd2 {[%clk 0:00:31.6]} 29... Rc7 {[%clk 0:01:01.8]} 30. Rc1 {[%clk 0:00:29.2]}
30... Rxc1 {[%clk 0:00:58.9]} 31. Kxc1 {[%clk 0:00:30.1]} 31... Kf8 {[%clk
0:00:59.8]} 32. Nd3 {[%clk 0:00:29]} 32... Ke7 {[%clk 0:00:59.3]} 33. Kc2 {[%clk
0:00:27.3]} 33... Kd6 {[%clk 0:00:57.1]} 34. Kb3 {[%clk 0:00:27.5]} 34... a6
{[%clk 0:00:48.4]} 35. Kc4 {[%clk 0:00:27]} 35... Ne7 {[%clk 0:00:36]} 36. Nb4
{[%clk 0:00:20.4]} 36... b5+ {[%clk 0:00:35.2]} 37. Kb3 {[%clk 0:00:16]} 37...
a5 {[%clk 0:00:31.9]} 38. Nd3 {[%clk 0:00:16.1]} 38... e5 {[%clk 0:00:29.6]} 39.
Kc3 {[%clk 0:00:12.8]} 39... Nd5+ {[%clk 0:00:27.2]} 40. Kb3 {[%clk 0:00:09.7]}
40... Nb6 {[%clk 0:00:20.8]} 41. Kc3 {[%clk 0:00:08.3]} 41... Na4+ {[%clk
0:00:19.6]} 42. Kb3 {[%clk 0:00:08.6]} 42... exd4 {[%clk 0:00:19.7]} 43. exd4
{[%clk 0:00:08.7]} 43... Kd5 {[%clk 0:00:20.1]} 44. Nf4+ {[%clk 0:00:03.3]}
44... Kxd4 {[%clk 0:00:20.3]} 45. Nh5 {[%clk 0:00:03.7]} 45... Nc5+ {[%clk
0:00:19.9]} 46. Kc2 {[%clk 0:00:01.3]} 46... Ke5 {[%clk 0:00:19]} 47. Ng3 {[%clk
0:00:01.4]} 47... Ne4 {[%clk 0:00:18.4]} 48. Nh1 {[%clk 0:00:01.7]} 48... b4
{[%clk 0:00:17.8]} 49. f3 {[%clk 0:00:02.1]} 49... Nc5 {[%clk 0:00:17.7]} 50.
axb4 {[%clk 0:00:02]} 50... axb4 {[%clk 0:00:18.6]} 51. Nf2 {[%clk 0:00:02.6]}
51... f5 {[%clk 0:00:15.9]} 52. Kb2 {[%clk 0:00:02.4]} 52... Kd4 {[%clk
0:00:16]} 53. Kc2 {[%clk 0:00:02.6]} 53... Ke3 {[%clk 0:00:16.3]} 54. Nd1+
{[%clk 0:00:02.4]} 54... Ke2 {[%clk 0:00:16.4]} 55. Kc1 {[%clk 0:00:01.9]} 55...
Nd3+ {[%clk 0:00:15.6]} 56. Kc2 {[%clk 0:00:02]} 56... b3+ {[%clk 0:00:16.5]}
57. Kxb3 {[%clk 0:00:01.5]} 57... Kxd1 {[%clk 0:00:17.4]} 58. Kc3 {[%clk
0:00:02.2]} 58... Ke2 {[%clk 0:00:18.1]} 59. g4 {[%clk 0:00:02.8]} 59... fxg4
{[%clk 0:00:18]} 60. fxg4 {[%clk 0:00:03.7]} 60... Ne5 {[%clk 0:00:17.2]} 61. h3
{[%clk 0:00:03.8]} 61... Kf3 {[%clk 0:00:17.1]} 62. Kd4 {[%clk 0:00:04.7]} 62...
Nxg4 {[%clk 0:00:17.2]} 63. hxg4 {[%clk 0:00:04.6]} 63... Kxg4 {[%clk
0:00:18.1]} 64. Ke5 {[%clk 0:00:05.5]} 64... Kg3 {[%clk 0:00:18.9]} 65. Kf6
{[%clk 0:00:06.4]} 65... h5 {[%clk 0:00:19.4]} 66. Kg5 {[%clk 0:00:07]} 66... h4
{[%clk 0:00:20.3]} 67. Kf6 {[%clk 0:00:07.2]} 67... h3 {[%clk 0:00:21.2]} 68.
Kxf7 {[%clk 0:00:08.1]} 68... h2 {[%clk 0:00:22.1]} 69. Kf6 {[%clk 0:00:08.3]}
69... h1=Q {[%clk 0:00:23]} 70. Kg6 {[%clk 0:00:09.2]} 70... Qd5 {[%clk
0:00:23]} 0-1

[Event "*** Titled Tuesday Blitz"]
[Site "Chess.com"]
[Date "2020.05.19"]
[Round "1"]
[White "Last7Samurai"]
[Black "kintoho"]
[Result "1/2-1/2"]
[WhiteElo "2827"]
[BlackElo "2439"]
[TimeControl "180+1"]
[EndTime "12:08:44 PDT"]
[Termination "Game drawn - insufficient material"]

1. e4 {[%clk 0:02:58.7]} 1... c6 {[%clk 0:02:59.1]} 2. d4 {[%clk 0:02:58]} 2...
d5 {[%clk 0:02:59.2]} 3. e5 {[%clk 0:02:58.4]} 3... Bf5 {[%clk 0:02:58.8]} 4.
Nf3 {[%clk 0:02:58.2]} 4... e6 {[%clk 0:02:58.5]} 5. Be2 {[%clk 0:02:58.3]} 5...
h6 {[%clk 0:02:57.6]} 6. O-O {[%clk 0:02:58.6]} 6... Nd7 {[%clk 0:02:57.8]} 7.
Nbd2 {[%clk 0:02:58.8]} 7... Ne7 {[%clk 0:02:57.1]} 8. Nb3 {[%clk 0:02:57.7]}
8... a5 {[%clk 0:02:55.7]} 9. a4 {[%clk 0:02:57.1]} 9... Nc8 {[%clk 0:02:55.8]}
10. Bd2 {[%clk 0:02:54.5]} 10... b6 {[%clk 0:02:55.1]} 11. c4 {[%clk 0:02:53.8]}
11... Be7 {[%clk 0:02:53.1]} 12. Rc1 {[%clk 0:02:52.2]} 12... Na7 {[%clk
0:02:50.2]} 13. Re1 {[%clk 0:02:47.9]} 13... O-O {[%clk 0:02:49.1]} 14. Be3
{[%clk 0:02:45.6]} 14... Bb4 {[%clk 0:02:48.7]} 15. Bd2 {[%clk 0:02:44.1]} 15...
Qe7 {[%clk 0:02:48]} 16. Bc3 {[%clk 0:02:38.1]} 16... Rfc8 {[%clk 0:02:47.3]}
17. Qd2 {[%clk 0:02:37.7]} 17... Bxc3 {[%clk 0:02:45.9]} 18. Rxc3 {[%clk
0:02:38.6]} 18... Qb4 {[%clk 0:02:44.7]} 19. cxd5 {[%clk 0:02:32.1]} 19... cxd5
{[%clk 0:02:37.2]} 20. Rxc8+ {[%clk 0:02:33]} 20... Rxc8 {[%clk 0:02:36.4]} 21.
Qxb4 {[%clk 0:02:33.9]} 21... axb4 {[%clk 0:02:36.2]} 22. Rc1 {[%clk 0:02:34.4]}
22... Rxc1+ {[%clk 0:02:29.1]} 23. Nxc1 {[%clk 0:02:35.3]} 23... Kf8 {[%clk
0:02:23.2]} 24. Kf1 {[%clk 0:02:28.8]} 24... Ke7 {[%clk 0:02:22.6]} 25. Ke1
{[%clk 0:02:28.3]} 25... Kd8 {[%clk 0:02:22.7]} 26. Kd2 {[%clk 0:02:28.1]} 26...
Kc7 {[%clk 0:02:23.1]} 27. Na2 {[%clk 0:02:27.2]} 27... Nc6 {[%clk 0:02:17.7]}
28. Bb5 {[%clk 0:02:26.8]} 28... b3 {[%clk 0:02:08.4]} 29. Nc1 {[%clk 0:02:23]}
29... Na5 {[%clk 0:02:01.7]} 30. Kc3 {[%clk 0:02:21.4]} 30... Bc2 {[%clk
0:01:54.9]} 31. Ne1 {[%clk 0:02:16.9]} 31... Bg6 {[%clk 0:01:53.2]} 32. Nxb3
{[%clk 0:02:15.1]} 32... Nxb3 {[%clk 0:01:52]} 33. Kxb3 {[%clk 0:02:16]} 33...
f6 {[%clk 0:01:50.3]} 34. f4 {[%clk 0:02:15.4]} 34... fxe5 {[%clk 0:01:49.1]}
35. fxe5 {[%clk 0:02:13.7]} 35... Nb8 {[%clk 0:01:46.4]} 36. Kc3 {[%clk
0:02:11.9]} 36... Nc6 {[%clk 0:01:46.4]} 37. Bxc6 {[%clk 0:02:04.9]} 37... Kxc6
{[%clk 0:01:46.3]} 38. b4 {[%clk 0:02:04.5]} 38... Be8 {[%clk 0:01:41.8]} 39.
Nd3 {[%clk 0:02:03.4]} 39... Kc7 {[%clk 0:01:41.5]} 40. a5 {[%clk 0:01:56]}
40... Kc6 {[%clk 0:01:33.1]} 41. axb6 {[%clk 0:01:34.3]} 41... Kxb6 {[%clk
0:01:32.7]} 42. Nc5 {[%clk 0:01:34.3]} 42... Bf7 {[%clk 0:01:31.8]} 43. Kb3
{[%clk 0:01:30.8]} 43... Kb5 {[%clk 0:01:31.1]} 44. Nb7 {[%clk 0:01:29.2]} 44...
Bg6 {[%clk 0:01:19.3]} 45. Nd6+ {[%clk 0:01:29.1]} 45... Kb6 {[%clk 0:01:15.4]}
46. g4 {[%clk 0:01:10.1]} 46... Bd3 {[%clk 0:01:14.9]} 47. Kc3 {[%clk
0:01:10.1]} 47... Be2 {[%clk 0:01:14.5]} 48. h3 {[%clk 0:01:09.1]} 48... Bf1
{[%clk 0:01:03.9]} 49. h4 {[%clk 0:01:09]} 49... g5 {[%clk 0:01:03.8]} 50. hxg5
{[%clk 0:00:55.3]} 50... hxg5 {[%clk 0:01:03.8]} 51. Nf7 {[%clk 0:00:54.3]}
51... Be2 {[%clk 0:01:01.6]} 52. Nh6 {[%clk 0:00:54.2]} 52... Kb5 {[%clk
0:00:59.6]} 53. Nf7 {[%clk 0:00:48.2]} 53... Bxg4 {[%clk 0:00:58.5]} 54. Nxg5
{[%clk 0:00:48.5]} 54... Bf5 {[%clk 0:00:58.2]} 55. Nf7 {[%clk 0:00:47.9]} 55...
Kb6 {[%clk 0:00:55.7]} 56. Nd6 {[%clk 0:00:47.7]} 56... Bh3 {[%clk 0:00:55.5]}
57. Kd2 {[%clk 0:00:47.8]} 57... Bf1 {[%clk 0:00:52.5]} 58. Ke3 {[%clk
0:00:47.6]} 58... Kc6 {[%clk 0:00:51.8]} 59. Kf4 {[%clk 0:00:47.6]} 59... Bh3
{[%clk 0:00:48.3]} 60. Kg5 {[%clk 0:00:47.6]} 60... Bg2 {[%clk 0:00:47.5]} 61.
Kf6 {[%clk 0:00:47.8]} 61... Bh3 {[%clk 0:00:47.7]} 62. Ke7 {[%clk 0:00:48.2]}
62... Bg4 {[%clk 0:00:47.1]} 63. Kd8 {[%clk 0:00:36.5]} 63... Bh3 {[%clk
0:00:46.9]} 64. Kc8 {[%clk 0:00:37]} 64... Bg4 {[%clk 0:00:45.5]} 65. Kb8 {[%clk
0:00:36.6]} 65... Kb6 {[%clk 0:00:45.5]} 66. Kc8 {[%clk 0:00:36.2]} 66... Kc6
{[%clk 0:00:45.7]} 67. Kd8 {[%clk 0:00:36.8]} 67... Bh3 {[%clk 0:00:45.2]} 68.
Ke8 {[%clk 0:00:37.1]} 68... Bg4 {[%clk 0:00:45.3]} 69. Ke7 {[%clk 0:00:37.7]}
69... Bh3 {[%clk 0:00:45.4]} 70. Nf7 {[%clk 0:00:36.3]} 70... Kb5 {[%clk
0:00:43.9]} 71. Ng5 {[%clk 0:00:36.7]} 71... Bg4 {[%clk 0:00:40.5]} 72. Nxe6
{[%clk 0:00:36.6]} 72... Kxb4 {[%clk 0:00:41]} 73. Ng7 {[%clk 0:00:10.1]} 73...
Kc4 {[%clk 0:00:39.1]} 74. Kf6 {[%clk 0:00:10.2]} 74... Kxd4 {[%clk 0:00:32.5]}
75. Nf5+ {[%clk 0:00:11.1]} 75... Ke4 {[%clk 0:00:27.6]} 76. Nd6+ {[%clk
0:00:08.9]} 76... Kf4 {[%clk 0:00:25.4]} 77. e6 {[%clk 0:00:07.2]} 77... Bxe6
{[%clk 0:00:24.4]} 78. Kxe6 {[%clk 0:00:08.1]} 78... d4 {[%clk 0:00:24.9]} 79.
Kd5 {[%clk 0:00:08.6]} 79... d3 {[%clk 0:00:24.6]} 80. Nc4 {[%clk 0:00:09]}
80... Kf3 {[%clk 0:00:23.9]} 81. Ne5+ {[%clk 0:00:09.3]} 81... Ke3 {[%clk
0:00:22.6]} 82. Nxd3 {[%clk 0:00:10.2]} 1/2-1/2